fUSD/lending_fUSD_20240426
["ID","MTS","AMOUNT","RATE_DAILY","PERIOD"]
[323608901,1714113035395,-500.0,0.00012983,2]
[323608902,1714113035404,-500.0,0.00012983,2]
[323608903,1714113035414,-500.0,0.00012983,2]
[323608904,1714113035423,-500.0,0.00012983,2]
[323608905,1714113035433,-2502.08,0.00012983,2]
[323608906,1714113035442,-500.0,0.00012983,2]
[323608907,1714113035452,-780.49,0.00012983,2]
[323608908,1714113035462,-3983.95,0.00012983,2]
[323608909,1714113035472,-500.0,0.00012983,2]
[323608910,1714113035481,-500.0,0.00012983,2]
[323608911,1714113035491,-500.0,0.00012983,2]
[323608912,1714113035500,-500.0,0.00012983,2]
[323608913,1714113035510,-500.0,0.00012983,2]
[323608914,1714113035519,-500.0,0.00012983,2]
[323608915,1714113035528,-248.11534242,0.00012983,2]
[323608916,1714113035538,-500.0,0.00012984,2]
[323608917,1714113035547,-500.0,0.00012984,2]
[323608918,1714113035557,-500.0,0.00012984,2]
[323608919,1714113035566,-500.0,0.00012984,2]
[323608920,1714113035576,-500.0,0.00012984,2]
[323608921,1714113035590,-500.0,0.00012984,2]
[323608922,1714113035600,-500.0,0.00012984,2]
[323608923,1714113035612,-500.0,0.00012984,2]
[323608924,1714113035621,-500.0,0.00012984,2]
[323608925,1714113035631,-195.55419749,0.00012984,2]
[323608926,1714113035640,-500.0,0.00012984,2]
[323608927,1714113035652,-500.0,0.00012984,2]
[323608928,1714113035662,-500.0,0.00012984,2]
[323608929,1714113035672,-528.0,0.00012986,2]
[323608930,1714113035682,-1073.0,0.00012986,2]
[323608931,1714113035693,-550.39714378,0.00012986,2]
[323608932,1714113035702,-811.24385668,0.00012987,2]
[323608933,1714113035711,-822.88,0.00012988,2]
[323608934,1714113035721,-822.88,0.00012988,2]
[323608935,1714113035733,-822.88,0.00012988,2]
[323608936,1714113035743,-334.26317841,0.0001299,2]
[323608937,1714113035761,-488.61682159,0.0001299,2]
[323608938,1714113035771,-822.88,0.0001299,2]
[323608939,1714113035780,-822.88,0.0001299,2]
[323608940,1714113035790,-822.88,0.0001299,2]
[323608941,1714113035799,-822.88,0.0001299,2]
[323608942,1714113035809,-822.88,0.0001299,2]
[323608943,1714113035818,-155.0,0.00012996,2]
[323608944,1714113035828,-1448.18317841,0.00012996,2]
[323608945,1714113036737,-879.76215232,0.00012996,2]
[323608946,1714113036750,-156.61720143,0.00012996,2]
[323608947,1714113036761,-156.12957447,0.00012996,2]
[323608948,1714113036772,-201.52834763,0.00012996,2]
[323608949,1714113036783,-161.02195853,0.00012996,2]
[323608950,1714113036793,-155.29557041,0.00012996,2]
[323608951,1714113036803,-193.91704369,0.00012996,2]
[323608952,1714113036814,-328.8854223,0.00012996,2]
[323608953,1714113036824,-535.80923815,0.00012996,2]
[323608954,1714113036839,-923.92165023,0.00012996,2]
[323608955,1714113036849,-1744.70843983,0.00012996,2]
[323608956,1714113036858,-263.95861987,0.00012996,2]
[323608957,1714113036868,-3775.34001016,0.00012996,2]
[323608958,1714113036878,-781.07343554,0.00012996,2]
[323608959,1714113036888,-155.34101391,0.00012996,2]
[323608960,1714113036898,-156.42024619,0.00012996,2]
[323608961,1714113037348,-159.51153251,0.00012996,2]
[323608962,1714113037357,-234.38846749,0.00012996,2]
[323608963,1714113037369,-127.10133737,0.00012996,2]
[323608964,1714113037378,-236.43039764,0.00012996,2]
[323608965,1714113037387,-1638.22895556,0.00012996,2]
[323608966,1714113037398,-1629.76586371,0.00012996,2]
[323608967,1714113037409,-3000.24666904,0.00012996,2]
[323608968,1714113037421,-1042.73164388,0.00012996,2]
[323608969,1714113037431,-364.57158007,0.00012996,2]
[323608970,1714113037440,-155.45749735,0.00012996,2]
[323608971,1714113037450,-155.42610327,0.00012996,2]
[323608972,1714113037461,-155.17974528,0.00012996,2]
[323608973,1714113037470,-237.17351593,0.00012996,2]
[323608974,1714113037479,-9.75105863,0.00012996,2]
[323608975,1714113037500,-699.51805404,0.00012996,2]
[323608976,1714113037509,-1478.23240071,0.00012996,2]
[323608977,1714113037519,-288.24366607,0.00012996,2]
[323608978,1714113037528,-214.61583145,0.00012996,2]
[323608979,1714113037539,-354.20748585,0.00012996,2]
[323608980,1714113037548,-1764.58256188,0.00012997,2]
[323609032,1714113038358,-1228.0,0.00012209,2]
[323609034,1714113038367,-541.72,0.00012209,2]
[323609036,1714113038376,-155.15597948,0.00012988,2]
[323609038,1714113038386,-1360.29902052,0.00012997,2]
[323609044,1714113038416,-16389.98853453,0.00012997,2]
[323609045,1714113038425,-897.0,0.00012998,2]
[323609046,1714113038435,-61669.44795428,0.00012998,2]
[323609047,1714113038447,-14234.99887379,0.00012998,2]
[323609048,1714113038482,-12400.0,0.00012998,2]
[323609049,1714113038495,-61913.00000005,0.00012998,2]
[323609050,1714113038507,-6775.96856293,0.00012998,2]
[323609051,1714113038593,-7103.53077201,0.00012998,2]
[323609052,1714113038610,-1614.2,0.00012998,2]
[323609058,1714113040091,-1056.0,0.00012209,2]
[323609059,1714113040100,-528.0,0.00012328,2]
[323609060,1714113040109,-4966.58244479,0.00012998,2]
[323609061,1714113040440,-3033.68078488,0.00012998,2]
[323609062,1714113040452,-455.34,0.00012998,2]
[323609063,1714113040463,-880.188012,0.00012998,2]
[323609065,1714113040474,-683.33006705,0.00012998,2]
[323609066,1714113040492,-9142.38341367,0.00012998,2]
[323609074,1714113043152,-500.0,0.00012708,2]
[323609075,1714113043161,-1019.88,0.00012709,2]
[323609076,1714113043172,-500.0,0.00012982,2]
[323609077,1714113043183,-1019.88,0.00012983,2]
[323609078,1714113043193,-680.24,0.00012998,2]
[323609079,1714113043312,-304.97067087,0.00012997,2]
[323609080,1714113043321,-601.02932913,0.00012998,2]
[323609081,1714113043340,-471.441,0.00012998,2]
[323609091,1714113045984,-257.49330705,8.55e-05,2]
[323609092,1714113045994,-79.59638812,0.00012709,2]
[323609093,1714113046005,-592.20361188,0.00012709,2]
[323609094,1714113046015,-671.8,0.00012983,2]
[323609095,1714113046025,-1410.97574024,0.00012998,2]
[323609096,1714113046038,-2574.88,0.00012998,2]
[323609097,1714113046050,-18100.000001,0.00012998,2]
[323609098,1714113046205,-281.00881241,0.00012998,2]
[323609319,1714113255337,27600.0,0.00025,120]
[323609320,1714113255385,109883.94168736,0.00025,120]
[323609322,1714114232237,-372.81,9.59e-05,2]
[323609323,1714114232293,-32.0662609,9.59e-05,2]
[323609324,1714114232302,-323.0243529,9.59e-05,2]
[323609325,1714114232312,-144.9093862,9.591e-05,2]
[323609326,1714114232353,-17.23782935,9.591e-05,2]
[323609327,1714114232362,-355.86,9.597e-05,2]
[323609328,1714114232371,-749.70504623,0.00011,2]
[323609329,1714114232380,-492.05,0.00011524,2]
[323609330,1714114232389,-500.0,0.00011525,2]
[323609331,1714114232398,-23493.55747673,0.00011541,2]
[323609332,1714114232407,-304.54,0.00011593,2]
[323609333,1714114232417,-159.94622947,0.00011593,2]
[323609334,1714114232426,-154.24,0.0001161,2]
[323609335,1714114232436,-167.51,0.00011627,2]
[323609336,1714114232445,-231.8,0.00011627,2]
[323609337,1714114232454,-150.99,0.00011663,2]
[323609338,1714114232463,-1005.76667301,0.00011699,2]
[323609339,1714114232473,-19522.84687105,0.000117,2]
[323609340,1714114232481,-320.0,0.00011814,2]
[323609341,1714114232490,-355.86,0.00011861,2]
[323609342,1714114232499,-154.24,0.00011913,2]
[323609343,1714114232509,-2750.0,0.00012,3]
[323609344,1714114232518,-5000.0,0.00012,2]
[323609345,1714114232526,-154.24,0.00012215,2]
[323609346,1714114232535,-3071.20810051,0.00012298,2]
[323609347,1714114232545,-2361.76986435,0.000123,2]
[323609348,1714114232553,-995.0,0.00012328,2]
[323609349,1714114232563,-462.0,0.0001233,2]
[323609350,1714114232572,-970.0,0.0001233,2]
[323609351,1714114232581,-1394.0,0.0001233,2]
[323609352,1714114232590,-1228.0,0.0001233,2]
[323609353,1714114232601,-568.422,0.0001233,2]
[323609354,1714114232610,-189.514,0.0001233,2]
[323609355,1714114232619,-1475.0,0.0001233,2]
[323609356,1714114232628,-420.0,0.0001233,2]
[323609357,1714114232637,-1641.0,0.0001233,2]
[323609358,1714114232646,-443.0,0.0001233,2]
[323609359,1714114232655,-214.0,0.0001233,2]
[323609360,1714114232664,-1140.0,0.0001233,2]
[323609361,1714114232673,-150.0,0.0001233,2]
[323609362,1714114232682,-150.0,0.0001233,2]
[323609363,1714114232691,-150.798,0.0001233,2]
[323609364,1714114232700,-1056.0,0.0001233,2]
[323609365,1714114232709,-150.0,0.0001233,2]
[323609366,1714114232718,-251.69476738,0.000125,2]
[323609367,1714114232943,-25993.2911,0.000125,2]
[323609368,1714114233016,-501.04512149,0.00012599,2]
[323609369,1714114233025,-501.6049819,0.00012599,2]
[323609370,1714114233034,-500.62091993,0.00012599,2]
[323609371,1714114233043,-500.0,0.00012599,2]
[323609372,1714114233053,-501.16124831,0.00012599,2]
[323609373,1714114233063,-500.40232464,0.00012599,2]
[323609374,1714114233075,-501.27107146,0.00012599,2]
[323609375,1714114233084,-503.50981775,0.00012599,2]
[323609376,1714114233093,-500.60704616,0.00012599,2]
[323609377,1714114233106,-302.3473675,0.00012599,2]
[323609378,1714114233116,-500.0,0.00012599,2]
[323609379,1714114233125,-531.72176248,0.00012599,2]
[323609380,1714114233134,-500.9029592,0.00012599,2]
[323609381,1714114233144,-388.03111867,0.00012599,2]
[323609382,1714114233154,-502.17420268,0.00012599,2]
[323609383,1714114233163,-501.07481605,0.00012599,2]
[323609384,1714114233174,-520.68967267,0.00012599,2]
[323609385,1714114233183,-502.46911898,0.00012599,2]
[323609386,1714114233192,-500.0,0.00012599,2]
[323609387,1714114233201,-501.56513631,0.00012599,2]
[323609388,1714114233210,-500.0,0.00012599,2]
[323609389,1714114233220,-500.0,0.0001269,2]
[323609390,1714114233229,-500.0,0.00012699,2]
[323609391,1714114233239,-500.0,0.00012708,2]
[323609392,1714114233248,-284.05338401,0.00012709,2]
[323609393,1714114233257,-500.0,0.00012709,2]
[323609394,1714114233266,-500.0,0.00012709,2]
[323609395,1714114233276,-500.0,0.00012709,2]
[323609396,1714114233285,-500.0,0.00012709,2]
[323609397,1714114233294,-500.0,0.00012709,2]
[323609398,1714114233303,-500.0,0.00012709,2]
[323609399,1714114233312,-500.0,0.00012709,2]
[323609400,1714114233321,-416.61757755,0.00012709,2]
[323609401,1714114233331,-182.09350863,0.00012709,2]
[323609402,1714114233340,-500.0,0.00012709,2]
[323609403,1714114233352,-166.01,0.00012722,2]
[323609404,1714114233362,-1094.22985258,0.00012738,2]
[323609405,1714114233371,-1083.43448587,0.00012738,2]
[323609406,1714114233380,-14722.95,0.00012772,2]
[323609407,1714114233389,-14492.28,0.00012773,2]
[323609408,1714114233398,-18611.77598243,0.000128,2]
[323609409,1714114233407,-500.0,0.00012873,2]
[323609410,1714114233416,-159.94622947,0.00012887,2]
[323609411,1714114233429,-150.25547053,0.00012887,2]
[323609412,1714114233439,-7500.0,0.00012887,2]
[323609413,1714114233448,-150.25547051,0.00012893,2]
[323609414,1714114233458,-1000.0,0.00012895,2]
[323609415,1714114233467,-500.0,0.00012895,2]
[323609416,1714114233476,-10000.0,0.00012896,2]
[323609417,1714114233486,-167.84639331,0.00012896,2]
[323609418,1714114233495,-196.05073833,0.00012898,2]
[323609419,1714114233504,-150.25547051,0.00012898,2]
[323609420,1714114233514,-1134.38071219,0.000129,2]
[323609421,1714114233523,-1000.0,0.000129,2]
[323609422,1714114233532,-6155.1369073,0.000129,2]
[323609423,1714114233541,-1000000.0,0.000129,2]
[323609424,1714114233550,-1000000.0,0.000129,2]
[323609425,1714114233559,-1828.63560727,0.000129,2]
[323609426,1714114233569,-157.09425106,0.00012966,2]
[323609427,1714114233578,-181.79868548,0.00012977,2]
[323609428,1714114233587,-500.0,0.00012982,2]
[323609429,1714114233600,-984.39,0.00012982,2]
[323609430,1714114233609,-764.94,0.00012982,2]
[323609431,1714114233619,-500.0,0.00012982,2]
[323609432,1714114233628,-500.0,0.00012982,2]
[323609433,1714114233637,-640.17,0.00012982,2]
[323609434,1714114233647,-500.0,0.00012982,2]
[323609435,1714114233656,-3651.96,0.00012982,2]
[323609436,1714114233665,-500.0,0.00012982,2]
[323609437,1714114233675,-500.0,0.00012982,2]
[323609438,1714114233684,-500.0,0.00012982,2]
[323609439,1714114233694,-200.81158735,0.00012983,2]
[323609440,1714114233703,-500.0,0.00012983,2]
[323609441,1714114233712,-500.0,0.00012983,2]
[323609442,1714114233722,-500.0,0.00012983,2]
[323609443,1714114233731,-500.0,0.00012983,2]
[323609444,1714114233740,-556.78890725,0.00012983,2]
[323609445,1714114233749,-500.0,0.00012983,2]
[323609446,1714114233758,-500.0,0.00012983,2]
[323609447,1714114233767,-500.0,0.00012984,2]
[323609448,1714114233776,-500.0,0.00012984,2]
[323609449,1714114233785,-842.03,0.00012984,2]
[323609450,1714114233794,-500.0,0.00012984,2]
[323609451,1714114233803,-500.0,0.00012984,2]
[323609452,1714114233812,-500.0,0.00012984,2]
[323609453,1714114233821,-715.45,0.00012984,2]
[323609454,1714114233831,-457.93396425,0.00012984,2]
[323609455,1714114233840,-500.0,0.00012984,2]
[323609456,1714114233852,-500.0,0.00012985,2]
[323609457,1714114233862,-500.0,0.00012985,2]
[323609458,1714114233871,-150.0,0.00012985,2]
[323609459,1714114233880,-500.0,0.00012985,2]
[323609460,1714114233889,-500.0,0.00012985,2]
[323609461,1714114233899,-500.0,0.00012985,2]
[323609462,1714114233908,-500.0,0.00012985,2]
[323609463,1714114233917,-500.0,0.00012985,2]
[323609464,1714114233926,-500.0,0.00012985,2]
[323609465,1714114233935,-590.16,0.00012985,2]
[323609466,1714114233944,-934.89,0.00012985,2]
[323609467,1714114233954,-500.0,0.00012985,2]
[323609468,1714114233966,-500.0,0.00012985,2]
[323609469,1714114233975,-500.0,0.00012985,2]
[323609470,1714114233985,-500.0,0.00012985,2]
[323609471,1714114233995,-500.0,0.00012985,2]
[323609472,1714114234005,-500.0,0.00012985,2]
[323609473,1714114234014,-558.06,0.00012985,2]
[323609474,1714114234024,-500.0,0.00012985,2]
[323609475,1714114234033,-500.0,0.00012985,2]
[323609476,1714114234043,-988.23,0.00012985,2]
[323609477,1714114234052,-651.01,0.00012985,2]
[323609478,1714114234067,-738.53,0.00012985,2]
[323609479,1714114234076,-500.0,0.00012985,2]
[323609480,1714114234086,-500.0,0.00012985,2]
[323609481,1714114234095,-501.36,0.00012985,2]
[323609482,1714114234106,-1468.48,0.00012985,2]
[323609483,1714114234115,-233.03,0.00012985,2]
[323609484,1714114234125,-500.0,0.00012985,2]
[323609485,1714114234134,-500.0,0.00012985,2]
[323609486,1714114234145,-500.0,0.00012985,2]
[323609487,1714114234155,-660.67,0.00012985,2]
[323609488,1714114234164,-500.0,0.00012985,2]
[323609489,1714114234174,-500.0,0.00012985,2]
[323609490,1714114234183,-500.0,0.00012985,2]
[323609491,1714114234193,-500.0,0.00012985,2]
[323609492,1714114234202,-514.48758633,0.00012985,2]
[323609493,1714114234211,-500.0,0.00012985,2]
[323609494,1714114234221,-500.0,0.00012985,2]
[323609495,1714114234231,-2293.58,0.00012985,2]
[323609496,1714114234241,-500.0,0.00012985,2]
[323609497,1714114234250,-9453.45,0.00012985,2]
[323609498,1714114234260,-1619.05,0.00012985,2]
[323609499,1714114234269,-500.0,0.00012985,2]
[323609500,1714114234278,-500.0,0.00012985,2]
[323609501,1714114234289,-500.0,0.00012985,2]
[323609502,1714114234298,-500.0,0.00012985,2]
[323609503,1714114234308,-1460.49,0.00012985,2]
[323609504,1714114234318,-1332.95,0.00012985,2]
[323609505,1714114234328,-500.0,0.00012985,2]
[323609506,1714114234338,-500.0,0.00012985,2]
[323609507,1714114234350,-500.0,0.00012985,2]
[323609508,1714114234359,-10729.5240781,0.00012987,2]
[323609509,1714114234369,-8625.1811295,0.00012987,2]
[323609510,1714114234378,-6520.8381808,0.00012987,2]
[323609511,1714114234387,-4416.4952321,0.00012987,2]
[323609512,1714114234397,-2312.1522835,0.00012987,2]
[323609513,1714114234406,-207.8093348,0.00012987,2]
[323609514,1714114234416,-9657.5490709,0.00012987,2]
[323609515,1714114234425,-7763.448723,0.00012987,2]
[323609516,1714114234434,-5869.3483752,0.00012987,2]
[323609517,1714114234443,-3975.2480273,0.00012987,2]
[323609518,1714114234453,-2081.1476795,0.00012987,2]
[323609519,1714114234462,-187.0473316,0.00012987,2]
[323609520,1714114234471,-116754.90301959,0.00012987,2]
[323609521,1714114234489,-46029.73605365,0.00012987,2]
[323609522,1714114234501,-432.03471639,0.00012987,2]
[323609555,1714114238321,-309.40800933,0.00012887,2]
[323609557,1714114238331,-196.11365433,0.00012984,2]
[323609559,1714114238341,-615.84357227,0.00012985,2]
[323609561,1714114238354,-500.0,0.00012985,2]
[323609563,1714114238364,-14083.51547887,0.00012987,2]
[323609565,1714114238373,-63251.55577401,0.00012987,2]
[323609577,1714114238484,-635.90568548,0.00012987,2]
[323609584,1714114238541,-10015.80882525,0.00012987,2]
[323609590,1714114240478,-309.40800931,0.0001289,2]
[323609591,1714114240487,-202.59199069,0.00012987,2]
[323609592,1714114240502,-374.73553,0.00012987,2]
[323609649,1714114246310,-309.40800931,0.00012894,2]
[323609651,1714114246319,-500.0,0.00012982,2]
[323609653,1714114246328,-895.94,0.00012984,2]
[323609655,1714114246337,-500.0,0.00012985,2]
[323609657,1714114246347,-38776.68280415,0.00012987,2]
[323609666,1714114246424,-667.61,0.00012987,2]
[323609668,1714114246477,-387.804,0.00012987,2]
[323609669,1714114246534,-270.42728545,0.00012987,2]
[323609670,1714114246545,-27951.19013027,0.00012987,2]
[323609671,1714114246555,-107768.4347821,0.00012987,2]
[323609672,1714114246564,-52592.17671101,0.00012987,2]
[323609673,1714114329875,10000.0,0.00025,120]
[323609687,1714115432430,-348.24,8.962e-05,2]
[323609688,1714115432439,-150.0,9.77e-05,2]
[323609689,1714115432448,-6158.84976756,9.771e-05,2]
[323609727,1714115438395,-705.281867,9.771e-05,2]
[323609729,1714115438407,-3714.54366207,9.771e-05,2]
[323609731,1714115438418,-545.03939917,9.771e-05,2]
[323609734,1714115438429,-12140.0,9.771e-05,2]
[323609759,1714115438863,-14326.44247964,9.771e-05,2]
[323609761,1714115438883,-10102.7848991,9.771e-05,2]
[323609763,1714115438892,-3174.4711,9.817e-05,2]
[323609765,1714115438902,-751.0,0.0001,2]
[323609767,1714115438911,-207.79,0.0001034,2]
[323609769,1714115438922,-732.81,0.00010369,2]
[323609771,1714115438931,-11445.84,0.00010392,2]
[323609773,1714115438940,-837.51,0.00010452,2]
[323609775,1714115438950,-250.0,0.00010603,2]
[323609777,1714115438959,-3490.79,0.00010603,2]
[323609779,1714115438969,-150.99,0.00010603,2]
[323609781,1714115438978,-206.49,0.00010682,2]
[323609783,1714115438987,-170.98,0.00010701,2]
[323609784,1714115438996,-210.0,0.00010747,2]
[323609786,1714115439006,-313.7,0.00010855,2]
[323609788,1714115439015,-170.98,0.00010887,2]
[323609790,1714115439027,-500.0,0.00010959,2]
[323609792,1714115439039,-1096.4,0.00010959,2]
[323609794,1714115439049,-2000.0,0.00011,2]
[323609795,1714115439060,-200.0,0.00011,2]
[323609796,1714115439069,-155.0,0.0001102,2]
[323609797,1714115439078,-347.63,0.00011021,2]
[323609798,1714115439088,-151.06,0.00011064,2]
[323609799,1714115439098,-170.98,0.00011073,2]
[323609800,1714115439107,-348.24,0.00011226,2]
[323609801,1714115439116,-170.98,0.00011259,2]
[323609802,1714115439126,-1296.13843238,0.00011265,2]
[323609803,1714115439135,-21144.20172905,0.00011542,2]
[323609804,1714115439145,-732.81,0.00011665,2]
[323609805,1714115439154,-18426.86032828,0.00011759,2]
[323609806,1714115439166,-1171.11856861,0.00011759,2]
[323609809,1714115440410,-461.20586218,0.00011759,2]
[323609810,1714115440679,-1198.0,0.00011759,2]
[323609811,1714115440691,-2297.26052,0.00011759,2]
[323609819,1714115443655,-501.36372696,0.00011759,2]
[323609820,1714115443710,-2968.23823805,0.00011759,2]
[323609837,1714115447601,-24987.50745592,0.00011759,2]
[323609838,1714115447611,-293.0,0.00011821,2]
[323609839,1714115447620,-2215.83251815,0.00011858,2]
[323609840,1714115447629,-2439.13332892,0.00011858,2]
[323609841,1714115447638,-500.0,0.00011859,2]
[323609842,1714115447648,-500.0,0.00011859,2]
[323609843,1714115447657,-500.0,0.00011859,2]
[323609844,1714115447666,-364.52711347,0.00011859,2]
[323609845,1714115447675,-150.0,0.00011859,2]
[323609846,1714115447862,-500.0,0.00011859,2]
[323609847,1714115447930,-434.0195027,0.00011859,2]
[323609848,1714115447939,-500.0,0.00011859,2]
[323609849,1714115447948,-500.0,0.00011859,2]
[323609850,1714115447957,-500.0,0.00011859,2]
[323609851,1714115447966,-500.0,0.00011859,2]
[323609852,1714115447976,-500.0,0.00011859,2]
[323609853,1714115447985,-500.0,0.00011859,2]
[323609854,1714115447994,-500.0,0.00011859,2]
[323609855,1714115448003,-368.38417168,0.00011859,2]
[323609856,1714115448012,-500.0,0.00011859,2]
[323609857,1714115448021,-630.75182704,0.00011859,2]
[323609858,1714115448030,-500.0,0.00011859,2]
[323609859,1714115448041,-500.0,0.00011859,2]
[323609860,1714115448051,-500.0,0.00011859,2]
[323609861,1714115448061,-947.06,0.00011859,2]
[323609862,1714115448070,-638.5079302,0.00011859,2]
[323609863,1714115448080,-707.76,0.00011859,2]
[323609864,1714115448089,-534.8,0.00011859,2]
[323609865,1714115448098,-1407.29,0.00011859,2]
[323609866,1714115448107,-500.0,0.00011859,2]
[323609867,1714115448117,-500.0,0.00011859,2]
[323609868,1714115448126,-500.0,0.00011859,2]
[323609869,1714115448135,-500.0,0.00011859,2]
[323609870,1714115448144,-500.0,0.00011859,2]
[323609871,1714115448153,-500.0,0.00011859,2]
[323609872,1714115448162,-500.0,0.00011859,2]
[323609873,1714115448171,-500.0,0.00011859,2]
[323609874,1714115448181,-296.76309513,0.00011859,2]
[323609875,1714115448190,-500.0,0.00011859,2]
[323609876,1714115448199,-825.45,0.00011859,2]
[323609877,1714115448208,-806.94,0.00011859,2]
[323609878,1714115448217,-500.0,0.00011859,2]
[323609879,1714115448227,-500.0,0.00011859,2]
[323609880,1714115448236,-500.0,0.00011859,2]
[323609881,1714115448245,-500.0,0.00011859,2]
[323609882,1714115448255,-733.06,0.00011859,2]
[323609883,1714115448265,-500.0,0.00011859,2]
[323609884,1714115448274,-500.0,0.00011859,2]
[323609885,1714115448284,-6219.21305679,0.00011859,2]
[323609886,1714115448311,-1071.59109708,0.00011859,2]
[323609887,1714115448326,-324.55840843,0.00011859,2]
[323609892,1714116013331,-404.8762609,9.608e-05,2]
[323609893,1714116013356,-255.50946214,9.609e-05,2]
[323609894,1714116044268,361.37892165,9.609e-05,2]
[323609895,1714116045687,155.0,9.609e-05,2]
[323609896,1714116062560,361.37892165,9.609e-05,2]
[323609897,1714116063434,155.0,9.609e-05,2]
[323609898,1714116080281,363.1330529,9.609e-05,2]
[323609899,1714116083454,192.58914757,9.609e-05,2]
[323609900,1714116100000,-1675.59222867,9.617e-05,2]
[323609901,1714116100024,-4324.18335427,9.618e-05,2]
[323609902,1714116131463,403.54,9.302e-05,2]
[323609903,1714116153450,155.0,9.302e-05,2]
[323609904,1714116163481,173.374868,9.302e-05,2]
[323609905,1714116181877,3268.30954906,9.302e-05,2]
[323609906,1714116212912,-170.04,8.909e-05,2]
[323609907,1714116212937,-4829.96,9.302e-05,2]
[323609911,1714116611832,66318.0,0.00025,120]
[323609918,1714116631570,-1395.5339715,9.302e-05,2]
[323609919,1714116631625,-530.0,9.302e-05,2]
[323609920,1714116631636,-456.19668118,9.302e-05,2]
[323609921,1714116631646,-237.30148157,9.302e-05,2]
[323609922,1714116631655,-155.0,9.302e-05,2]
[323609923,1714116631664,-150.0,9.517e-05,2]
[323609924,1714116631673,-150.0,9.517e-05,2]
[323609925,1714116631683,-1394.92297573,9.518e-05,2]
[323609926,1714116631706,-1117.05872427,9.518e-05,2]
[323609927,1714116631716,-155.0,0.00011,2]
[323609928,1714116631725,-200.0,0.00011,2]
[323609929,1714116631735,-557.66,0.00011001,2]
[323609930,1714116631744,-180.14,0.0001106,2]
[323609931,1714116631756,-70.72815407,0.00011086,2]
[323609932,1714116631770,-429.27184593,0.00011086,2]
[323609933,1714116631779,-439.68,0.00011136,2]
[323609934,1714116631788,-365.43400154,0.00011309,2]
[323609935,1714116631814,-59.23599846,0.00011309,2]
[323609936,1714116631823,-247.01,0.00011542,2]
[323609937,1714116631832,-2478.23895435,0.00011542,2]
[323609938,1714116631843,-326.94545494,0.00011542,2]
[323609955,1714116637573,-5950.14032621,0.00011542,2]
[323609965,1714116637630,-353.50613739,0.00011542,2]
[323609967,1714116637641,-275.68,0.00011542,2]
[323609969,1714116637652,-11759.69085616,0.00011542,2]
[323609970,1714116637661,-403.54,0.00011566,2]
[323609971,1714116637671,-1103.70817289,0.00011622,2]
[323609972,1714116637681,-150.99,0.00011622,2]
[323609973,1714116637690,-131.51220415,0.00011759,2]
[323609974,1714116637792,-12237.09312621,0.00011759,2]
[323609975,1714116637901,-1576.62106964,0.00011759,2]
[323609976,1714116637915,-294.23712741,0.00011857,2]
[323609977,1714116637927,-157.5430368,0.00011857,2]
[323609978,1714116637936,-801.54636689,0.00011857,2]
[323609979,1714116637947,-1388.85615914,0.00011857,2]
[323609980,1714116637956,-3081.50969513,0.00011857,2]
[323609981,1714116637965,-500.0,0.00011857,2]
[323609982,1714116637974,-908.98,0.00011857,2]
[323609983,1714116637984,-773.32,0.00011857,2]
[323609984,1714116637994,-500.0,0.00011857,2]
[323609985,1714116638003,-702.52,0.00011857,2]
[323609986,1714116638016,-289.73232202,0.00011857,2]
[323609987,1714116638025,-500.0,0.00011857,2]
[323609988,1714116638034,-500.0,0.00011857,2]
[323609989,1714116638044,-613.49,0.00011857,2]
[323609990,1714116638053,-685.64,0.00011857,2]